bitfinex-derivatives/quotes_ETHF0:USTF0_20240829
["timestamp","ask_amount","ask_price","bid_price","bid_amount"]
[1724936980798,4.49956851,2571.0,2570.9,0.00583147]
[1724936980993,4.49956851,2571.0,2570.9,0.39470147]
[1724936980994,8.38916851,2571.0,2570.9,0.39470147]
[1724936981403,8.77801851,2571.0,2570.9,0.00583147]
[1724936981795,8.38916851,2571.0,2570.9,0.00583147]
[1724936982496,8.77801851,2571.0,2570.9,0.00583147]
[1724936984101,8.77801851,2571.0,2569.1,0.97285]
[1724936984102,3.20196853,2570.9,2569.1,0.97285]
[1724936984306,3.20196853,2570.9,2569.0,6.5578]
[1724936984307,3.2078,2570.1,2569.2,2.2829]
[1724936984501,3.4772,2570.0,2569.7,0.38904]
[1724936984701,7.60554707,2570.0,2569.7,0.38904]
[1724936985204,7.60554707,2570.0,2569.6,0.39489147]
[1724936985403,7.60554707,2570.0,2569.8,0.38903]
[1724936986200,7.60554707,2570.0,2569.7,1.18]
[1724936986403,7.60554707,2570.0,2569.6,0.00583147]
[1724936986819,0.00583147,2570.1,2569.7,3.35]
[1724936986995,0.00583147,2570.1,2570.0,0.389]
[1724936987404,0.00583147,2570.1,2570.0,4.2802]
[1724936988299,0.00583147,2570.1,2569.9,4.15501]
[1724936989203,3.21363147,2570.1,2570.0,0.389]
[1724936989795,3.21363147,2570.1,2569.9,3.766]
[1724936990204,3.21363147,2570.1,2569.9,0.38901]
[1724936990410,3.21363147,2570.1,2569.9,1.58521]
[1724936990910,3.21363147,2570.1,2569.9,1.1962]
[1724936991110,3.21363147,2570.1,2569.8,3.767]
[1724936991910,3.21363147,2570.1,2569.8,4.15603]
[1724936992502,3.21363147,2570.1,2569.8,7.6582]
[1724936992800,0.00583147,2570.1,2570.0,0.389]
[1724936993005,0.00583147,2570.1,2570.0,2.5967]
[1724936993307,0.00583147,2570.1,2570.0,6.4879]
[1724936994203,0.00583147,2570.1,2570.0,4.2802]
[1724936994607,0.00583147,2570.1,2569.9,0.38901]
[1724936994809,0.00583147,2570.1,2569.8,4.8612]
[1724936994810,7.33231515,2570.1,2569.8,4.15603]
[1724936995001,7.33231515,2570.1,2569.8,3.767]
[1724936997216,3.35,2569.9,2569.8,3.767]
[1724936997798,4.5173,2569.9,2569.8,3.767]
[1724936998913,8.4085,2569.9,2569.8,3.767]
[1724936999115,12.86621104,2569.9,2569.8,3.767]
[1724936999307,8.97501104,2569.9,2569.8,3.767]
[1724936999506,12.86621104,2569.9,2569.8,3.767]
[1724936999713,8.97501104,2569.9,2569.8,3.767]
[1724937000511,13.25523104,2569.9,2569.8,3.767]
[1724937001103,9.36403104,2569.9,2569.8,3.767]
[1724937001308,13.25523104,2569.9,2569.8,3.767]
[1724937001819,9.36403104,2569.9,2569.8,3.767]
[1724937002716,9.36403104,2569.9,2569.6,0.39489147]
[1724937002717,12.86621104,2569.9,2569.6,0.00583147]
[1724937002910,6.94685,2569.7,2569.6,0.00583147]
[1724937003213,11.16968147,2569.7,2569.6,0.00583147]
[1724937003417,7.43063147,2569.7,2569.6,0.00583147]
[1724937003618,7.43063147,2569.7,2569.6,5.25876147]
[1724937003619,3.2078,2569.7,2569.6,5.25876147]
[1724937003910,0.00583147,2570.1,2570.0,0.389]
[1724937004116,1.10623147,2570.1,2570.0,0.389]
[1724937004313,4.07048557,2570.0,2569.9,0.38901]
[1724937004514,3.35,2570.0,2569.9,0.38901]
[1724937005005,7.42048557,2570.0,2569.9,0.38901]
[1724937006105,4.07048557,2570.0,2569.9,0.38901]
[1724937006305,4.07048557,2570.0,2569.8,0.38902]
[1724937006512,4.2904,2569.9,2569.8,0.38902]
[1724937007718,3.2078,2569.9,2569.8,4.28022]
[1724937009221,0.00583147,2570.1,2570.0,0.389]
[1724937009419,0.00583147,2570.1,2570.0,5.68402]
[1724937009624,0.00583147,2570.1,2570.0,19.34322]
[1724937009925,0.0020192,2570.1,2570.0,60.14322]
[1724937010721,9.2e-06,2570.1,2570.0,62.08825]
[1724937010930,3.2078,2570.8,2570.7,0.3889]
[1724937013023,0.00583147,2571.0,2570.9,0.38887]
[1724937013527,0.00583147,2571.0,2570.9,5.25064]
[1724937013825,0.00583147,2571.0,2570.9,5.47197]
[1724937014323,0.00583147,2571.0,2570.9,12.44414]
[1724937014626,0.00583147,2571.0,2570.9,13.41631]
[1724937015021,0.00583147,2571.0,2570.9,54.21631]
[1724937015220,1.47e-06,2571.0,2570.9,54.21631]
[1724937015730,1.138,2571.5,2571.1,0.38884]
[1724937015916,1.138,2571.5,2571.4,0.38879]
[1724937017240,24.64858147,2571.7,2571.6,0.38876]
[1724937020936,24.64858147,2571.7,2571.6,5.24947]
[1724937021240,24.64858147,2571.7,2571.6,9.00847]
[1724937021241,21.44078147,2571.7,2571.6,9.00847]
[1724937021438,21.44078147,2571.7,2571.6,9.89557]
[1724937021629,21.44078147,2571.7,2571.6,13.10848]
[1724937021944,21.44078147,2571.7,2571.6,16.86748]
[1724937023447,21.44078147,2571.7,2571.6,15.89557]
[1724937023740,21.44078147,2571.7,2571.6,20.07528]
[1724937024938,20.71198147,2571.7,2571.6,19.10337]
[1724937025339,20.71198147,2571.7,2571.6,20.07528]
[1724937025539,19.92855147,2571.7,2571.6,20.07528]
[1724937026340,19.92855147,2571.7,2571.6,13.10337]
[1724937026544,19.92855147,2571.7,2571.6,12.21627]
[1724937026949,19.92855147,2571.7,2571.6,11.24436]
[1724937027147,19.28695147,2571.7,2571.6,11.24436]
[1724937027541,19.28695147,2571.7,2571.6,12.21627]
[1724937028546,19.28695147,2571.7,2571.6,11.24436]
[1724937028749,19.28695147,2571.7,2571.6,7.48536]
[1724937028947,19.28695147,2571.7,2571.6,11.24336]
[1724937029140,19.28695147,2571.7,2571.6,12.21527]
[1724937030142,19.28695147,2571.7,2571.6,11.24336]
[1724937030539,19.28695147,2571.7,2571.6,4.14676]
[1724937030748,18.73335147,2571.7,2571.6,4.14676]
[1724937031041,19.60655147,2571.7,2571.6,4.14676]
[1724937031247,19.60655147,2571.7,2571.6,0.38876]
[1724937031648,19.60655147,2571.7,2571.5,3.758]
[1724937031947,1.7794,2571.6,2571.5,4.14678]
[1724937033638,19.60655147,2571.7,2571.6,1.36067]
[1724937033838,18.73335147,2571.7,2571.6,1.36067]
[1724937034036,18.73335147,2571.7,2571.6,0.38876]
[1724937035651,22.62215147,2571.7,2571.5,4.14677]
[1724937035953,2.7932,2571.6,2571.5,4.14677]
[1724937036950,0.38878,2571.5,2571.3,4.1468]
[1724937037145,0.38881,2571.3,2571.2,0.00583147]
[1724937037543,8.30142046,2571.3,2571.2,0.00583147]
[1724937037743,4.02381046,2571.3,2571.2,0.39465147]
[1724937037946,7.91261046,2571.3,2571.2,0.39465147]
[1724937038149,3.8888,2571.3,2571.2,0.39465147]
[1724937038350,8.23131912,2571.3,2571.2,0.39465147]
[1724937038550,4.34251912,2571.3,2571.2,0.39465147]
[1724937038855,3.8888,2571.3,2571.2,0.39465147]
[1724937039151,11.33551853,2571.3,2571.2,0.00583147]
[1724937039358,11.72432853,2571.3,2571.2,0.00583147]
[1724937039854,0.38883,2571.2,2571.0,4.27684]
[1724937040053,0.9004,2571.1,2571.0,4.27684]
[1724937040251,6.2403934,2571.1,2571.0,4.27684]
[1724937040455,10.5188334,2571.1,2570.9,0.38886]
[1724937040652,6.2403934,2571.1,2571.0,0.38885]
[1724937041651,1.8175,2571.1,2571.0,5.25059]
[1724937043253,1.8175,2571.1,2571.0,0.38885]
[1724937043661,1.8175,2571.1,2571.0,1.36099]
[1724937045059,0.9507,2571.5,2571.2,0.97206]
[1724937045248,1.9024,2571.5,2571.4,1.36077]
[1724937045449,1.9024,2571.5,2571.4,0.38879]
[1724937046355,1.9024,2571.5,2571.4,1.36077]
[1724937047357,1.9024,2571.5,2571.4,0.38879]
[1724937048658,1.9024,2571.5,2571.4,1.36077]
[1724937049661,0.8578,2571.6,2571.5,1.36073]
[1724937050857,0.8578,2571.6,2571.5,9.57148]
[1724937051263,0.8578,2571.6,2571.5,5.68268]
[1724937051454,0.8578,2571.6,2571.5,9.57148]
[1724937053260,0.8578,2571.6,2571.5,5.68268]
[1724937054654,0.8578,2571.6,2571.5,4.71073]
[1724937055362,0.8578,2571.6,2571.5,5.12095512]
[1724937056063,0.8578,2571.6,2571.5,4.71073]
[1724937056265,0.8578,2571.6,2571.5,5.12096342]
[1724937057260,0.8578,2571.6,2571.5,4.71073]
[1724937057658,0.8578,2571.6,2571.5,5.1208844]
[1724937057957,0.8578,2571.6,2571.5,1.7708844]
[1724937058157,9.32196133,2571.6,2571.5,0.4101544]
[1724937058356,9.32196133,2571.6,2571.5,0.41023008]
[1724937058357,12.52976133,2571.6,2571.5,0.41023008]
[1724937058558,12.52976133,2571.6,2571.4,4.14078]
[1724937058753,8.64096133,2571.6,2571.4,4.14078]
[1724937059168,8.64096133,2571.6,2571.5,0.38878]
[1724937059169,8.25220133,2571.6,2571.5,0.38878]
[1724937059560,12.14100133,2571.6,2571.5,0.38878]
[1724937060271,12.14100133,2571.6,2571.5,0.41025799]
[1724937060470,0.38878,2571.5,2571.4,4.14078]
[1724937060669,0.38878,2571.5,2571.4,3.752]
[1724937060865,8.64097133,2571.6,2571.4,3.752]
[1724937061172,8.64097133,2571.6,2571.5,0.38878]
[1724937061566,12.14100133,2571.6,2571.5,0.38878]
[1724937063176,8.25220133,2571.6,2571.5,1.36073]
[1724937063371,12.14100133,2571.6,2571.5,1.36073]
[1724937063673,12.14100133,2571.6,2571.5,0.38878]
[1724937065670,12.14100133,2571.6,2571.5,1.36073]
[1724937066574,12.14100133,2571.6,2571.5,0.79925016]
[1724937067272,12.14100133,2571.6,2571.5,0.38878]
[1724937067471,0.38878,2571.5,2571.4,4.14079]
[1724937067672,8.64097133,2571.6,2571.5,0.38878]
[1724937068072,12.52977133,2571.6,2571.5,0.38878]
[1724937068271,8.64097133,2571.6,2571.5,0.38878]
[1724937068474,8.25220133,2571.6,2571.5,0.79934171]
[1724937069273,8.25220133,2571.6,2571.5,1.77129171]
[1724937069572,19.66405147,2571.7,2571.6,1.36067]
[1724937069573,18.73335147,2571.7,2571.6,1.36067]
[1724937069868,18.73335147,2571.7,2571.6,1.77123171]
[1724937070073,18.73335147,2571.7,2571.6,1.36067]
[1724937071080,18.73335147,2571.7,2571.6,2.33258]
[1724937071577,18.73335147,2571.7,2571.6,2.74294184]
[1724937071779,18.73335147,2571.7,2571.6,2.74294189]
[1724937072272,18.73335147,2571.7,2571.6,7.63723506]
[1724937072573,18.15013565,2571.7,2571.6,10.08403438]
[1724937072875,18.15013565,2571.7,2571.6,50.88403438]
[1724937073081,18.15013565,2571.7,2571.6,49.37579462]
[1724937074072,18.15013565,2571.7,2571.6,50.89066594]
[1724937078583,18.15013565,2571.7,2571.6,50.48030405]
[1724937078879,18.15013565,2571.7,2571.6,50.89057647]
[1724937079384,18.15013565,2571.7,2571.6,48.94652374]
[1724937080181,17.33776565,2571.7,2571.6,50.89034374]
[1724937080385,16.51644565,2571.7,2571.6,56.89034374]
[1724937080682,14.79058565,2571.7,2571.6,58.83430796]
[1724937081276,14.79058565,2571.7,2571.6,57.51248746]
[1724937081884,14.79058565,2571.7,2571.6,57.10221504]
[1724937082078,14.79058565,2571.7,2571.6,57.51243961]
[1724937082678,14.79058565,2571.7,2571.6,53.62465539]
[1724937083084,14.79058565,2571.7,2571.6,55.56847539]
[1724937086285,13.63682565,2571.7,2571.6,55.56847539]
[1724937086580,0.9067,2572.4,2572.3,1.36029]
[1724937086777,1.7781,2572.4,2572.3,1.77051457]
[1724937087880,1.7781,2572.4,2572.3,6.62935457]
[1724937088191,0.00583147,2572.6,2572.5,2.33176]
[1724937088386,0.00583147,2572.6,2572.5,50.63698457]
[1724937088685,0.00583147,2572.6,2572.5,55.45118457]
[1724937088889,0.00583147,2572.6,2572.5,55.64486577]
[1724937089086,0.00583147,2572.6,2572.5,55.64497552]
[1724937089475,0.00583147,2572.6,2572.5,53.55272432]
[1724937089679,0.00583147,2572.6,2572.5,48.69395432]
[1724937089990,0.00583147,2572.6,2572.5,7.89395432]
[1724937090887,0.00583147,2572.6,2572.5,7.89405833]
[1724937091887,0.00583147,2572.6,2572.5,7.89305833]
[1724937092288,0.00583147,2572.6,2572.5,7.48262]
[1724937096984,1.78643147,2572.6,2572.5,7.48262]
[1724937097185,1.78643147,2572.6,2572.5,4.13262]
[1724937106109,2.17504147,2572.6,2572.5,5.144]
[1724937106296,10.24157147,2572.6,2572.3,1.4]
[1724937106496,0.38865,2572.3,2572.2,0.38866]
[1724937106693,0.38867,2572.2,2572.1,1.79450147]
[1724937106896,0.9136,2572.2,2572.1,1.79450147]
[1724937107602,4.8016,2572.2,2572.1,1.79450147]
[1724937108098,0.9136,2572.2,2572.1,0.39450147]
[1724937108302,4.99423147,2572.6,2572.5,0.38862]
[1724937108994,8.88143147,2572.6,2572.5,0.38862]
[1724937109196,4.99423147,2572.6,2572.5,0.38862]
[1724937110106,1.78643147,2572.6,2572.5,0.38862]
[1724937113004,1.78643147,2572.6,2572.5,1.36019]
[1724937113191,1.78643147,2572.6,2572.5,0.38862]
[1724937113397,1.78643147,2572.6,2572.5,0.79932532]
[1724937115207,9.72924351,2572.6,2572.5,0.38862]
[1724937115402,9.72924351,2572.6,2572.5,0.79948643]
[1724937119815,9.72924351,2572.6,2572.5,0.79944493]
[1724937121099,10.11785351,2572.6,2572.5,0.41082493]
[1724937121404,0.38867,2572.2,2572.1,4.58551147]
[1724937121609,3.2078,2572.3,2572.2,0.38866]
[1724937121811,0.38864,2572.4,2572.3,0.38865]
[1724937122005,5.96576147,2572.6,2572.3,0.38865]
[1724937122006,0.38864,2572.5,2572.3,0.79962522]
[1724937122207,4.38334613,2572.5,2572.4,0.79950746]
[1724937122600,8.27054613,2572.5,2572.4,0.79950746]
[1724937122801,4.38334613,2572.5,2572.4,1.77111746]
[1724937122999,4.99423147,2572.6,2572.5,0.38862]
[1724937123210,4.99423147,2572.6,2572.5,0.79948746]
[1724937123407,1.78643147,2572.6,2572.5,0.79948746]
[1724937124507,0.00583147,2572.6,2572.5,5.13105746]
[1724937124714,0.00583147,2572.6,2572.5,8.0829458]
[1724937125018,0.00583147,2572.6,2572.5,67.84462008]
[1724937125317,0.38846,2573.6,2572.9,0.97141]
[1724937125520,0.38846,2573.6,2573.2,0.38852]
[1724937125809,4.00891596,2573.5,2573.2,0.38852]
[1724937126011,4.00891596,2573.5,2573.3,0.3885]
[1724937126820,4.00891596,2573.5,2573.0,8.0097]
[1724937127119,4.00891596,2573.5,2573.3,0.38849]
[1724937127320,4.00891596,2573.5,2573.4,0.38849]
[1724937128017,4.00891596,2573.5,2573.4,0.79871188]
[1724937128220,4.00891596,2573.5,2573.4,0.38849]
[1724937129206,3.21363147,2573.7,2573.6,0.38846]
[1724937129413,3.21363147,2573.7,2573.6,4.15867134]
[1724937129914,3.21363147,2573.7,2573.6,5.04707134]
[1724937130114,0.00583147,2573.7,2573.6,8.93267134]
[1724937130416,0.00583147,2573.7,2573.6,9.90382134]
[1724937130918,0.00583147,2573.7,2573.6,8.93267134]
[1724937131118,0.00583147,2573.7,2573.6,0.79867134]
[1724937131317,0.00583147,2573.7,2573.6,0.38846]
[1724937131713,0.00583147,2573.7,2573.6,0.79853535]
[1724937132422,0.00583147,2573.7,2573.6,0.38846]
[1724937133326,0.00583147,2573.7,2573.4,0.00583147]
[1724937133627,0.39428147,2573.7,2573.4,0.39432147]
[1724937135033,0.39428147,2573.7,2573.5,0.38847]
[1724937135331,4.31920548,2573.6,2573.5,0.38847]
[1724937135516,4.31920548,2573.6,2573.4,0.00583147]
[1724937135517,0.38847,2573.5,2573.4,0.00583147]
[1724937135722,2.22587,2573.5,2573.4,0.00583147]
[1724937136617,2.22587,2573.5,2573.4,0.39432147]
[1724937137316,1.8374,2573.5,2573.4,0.39432147]
[1724937137523,2.22587,2573.5,2573.4,0.00583147]
[1724937137720,6.11147,2573.5,2573.4,0.39432147]
[1724937137920,6.11147,2573.5,2573.4,0.00583147]
[1724937138535,6.11147,2573.5,2573.4,0.39432147]
[1724937139528,1.8374,2573.5,2573.4,4.72555147]
[1724937140323,1.8374,2573.5,2573.4,3.75432147]
[1724937141119,0.00583147,2573.7,2573.6,0.38846]
[1724937141335,0.00583147,2573.7,2573.6,3.74846]
[1724937141935,0.00583147,2573.7,2573.6,0.38846]
[1724937143434,0.00583147,2573.7,2573.6,4.71961]
[1724937143628,0.00583147,2573.7,2573.6,5.61201]
[1724937144031,0.00202303,2573.7,2573.6,5.61201]
[1724937144335,0.00202303,2573.7,2573.6,46.41201]
[1724937144534,0.00202303,2573.7,2573.6,50.59096]
[1724937147424,1.8111,2574.2,2573.6,59.11695]
[1724937147632,0.8986,2574.2,2574.1,4.71935]
[1724937147835,3.2078,2574.4,2574.3,0.38835]
[1724937148232,11.35216773,2574.4,2574.3,0.38835]
[1724937148543,7.46736773,2574.4,2574.3,0.38835]
[1724937149039,4.25956773,2574.4,2574.3,0.38835]
[1724937149634,0.8831,2574.5,2574.4,0.38834]
[1724937150436,0.38837,2574.2,2574.0,3.728]
[1724937150737,6.79568969,2574.1,2573.7,0.38844]
[1724937150942,1.2448,2574.0,2573.8,0.38843]
[1724937151341,4.07151969,2573.9,2573.8,0.38843]
[1724937151733,4.07151969,2573.9,2573.7,3.36]
[1724937151734,0.8564,2574.0,2573.9,0.38841]
[1724937152444,0.8766,2574.1,2574.0,1.3594]
[1724937152644,0.8766,2574.1,2574.0,0.3884]
[1724937152845,0.8766,2574.1,2574.0,4.2732]
[1724937153240,0.8766,2574.1,2574.0,5.2442]
[1724937153544,1.7814,2574.3,2574.2,0.38837]
[1724937154343,0.9048,2574.3,2574.2,1.3593]
[1724937155542,0.9048,2574.3,2574.2,0.38837]
[1724937155843,0.9048,2574.3,2574.2,1.3593]
[1724937156038,0.8715,2574.5,2574.4,0.38834]
[1724937156246,0.00388766,2574.6,2574.5,0.38832]
[1724937157041,0.00388766,2574.6,2574.4,3.36]
[1724937157338,0.00388766,2574.6,2574.5,0.38832]
[1724937162843,0.00388766,2574.6,2574.5,1.35913]
[1724937166542,0.00388766,2574.6,2574.5,2.32994]
[1724937167639,0.00388766,2574.6,2574.5,6.05094]
[1724937168549,0.00388766,2574.6,2574.5,5.08013]
[1724937169860,0.00388766,2574.6,2574.5,3.721]
[1724937170154,0.00388766,2574.6,2574.5,4.10932]
[1724937170543,0.39219766,2574.6,2574.5,4.10932]
[1724937170743,0.39219766,2574.6,2574.5,3.721]
[1724937170744,7.48399766,2574.6,2574.5,3.721]
[1724937170952,11.5619849,2574.6,2574.5,2.3147]
[1724937171145,18.5327649,2574.6,2574.5,0.9085]
[1724937171347,0.38835,2574.4,2574.3,0.38835]
[1724937171544,0.9035,2574.5,2574.4,0.38834]
[1724937171745,1.29182,2574.5,2574.4,0.38834]
[1724937171942,4.18601597,2574.5,2574.4,0.38834]
[1724937172146,5.08951597,2574.5,2574.4,0.38834]
[1724937172647,5.47783597,2574.5,2574.4,0.38834]
[1724937172849,5.08951597,2574.5,2574.4,0.38834]
[1724937173055,0.9035,2574.5,2574.4,0.38834]
[1724937173252,0.9035,2574.5,2574.4,1.35919]
[1724937174047,0.00388766,2574.6,2574.5,1.35913]
[1724937174252,0.00388766,2574.6,2574.5,4.71913]
[1724937174452,0.00388766,2574.6,2574.5,9.01321035]
[1724937174853,0.00388766,2574.6,2574.5,8.60313]
[1724937175152,0.00388766,2574.6,2574.5,9.01320491]
[1724937175352,0.00388766,2574.6,2574.5,8.04239491]
[1724937175954,0.00388766,2574.6,2574.5,7.63232]
[1724937177355,0.00388766,2574.6,2574.5,4.27232]
[1724937177558,0.00388766,2574.6,2574.3,1.7146]
[1724937177559,0.00388766,2574.6,2574.4,3.36]
[1724937177853,0.00388766,2574.6,2574.5,0.38832]
[1724937178255,0.00388766,2574.6,2574.4,3.36]
[1724937178553,0.91358766,2574.6,2574.4,3.74833]
[1724937179153,1.30190766,2574.6,2574.4,3.36]
[1724937179454,0.38832,2574.5,2574.4,3.36]
[1724937179653,0.91358766,2574.6,2574.4,3.74834]
[1724937179856,0.91358766,2574.6,2574.4,3.74833]
[1724937180161,0.91358766,2574.6,2574.4,3.74832]
[1724937181555,0.91358766,2574.6,2574.4,3.36]
[1724937181755,0.91358766,2574.6,2574.4,3.74833]
[1724937182059,0.91358766,2574.6,2574.5,0.38832]
[1724937182760,0.00388766,2574.6,2574.5,0.38832]
[1724937183356,0.00388766,2574.6,2574.5,1.73395067]
[1724937183857,0.00388766,2574.6,2574.4,0.38833]
[1724937184058,0.00388766,2574.6,2574.2,3.2078]
[1724937184059,0.00388766,2574.6,2574.3,0.38834]
[1724937184256,0.00388766,2574.6,2574.3,3.74834]
[1724937184559,0.00388766,2574.6,2574.3,3.36]
[1724937184761,0.00388766,2574.6,2574.4,0.38833]
[1724937184957,3.2078,2574.5,2574.1,4.191]
[1724937185162,0.38837,2574.2,2574.1,4.191]
[1724937185456,3.2078,2574.2,2573.8,4.624]
[1724937185665,3.2078,2574.2,2573.9,3.77049467]
[1724937185666,0.8484,2574.1,2573.9,3.77049467]
[1724937185963,0.8484,2574.1,2574.0,0.41046856]
[1724937186354,0.8484,2574.1,2573.9,3.36]
[1724937186747,0.8484,2574.1,2574.0,0.41053578]
[1724937186965,0.8484,2574.1,2574.0,0.79893578]
[1724937187152,0.8484,2574.1,2573.9,3.36]
[1724937187462,0.8484,2574.1,2574.0,0.41051235]
[1724937188949,1.23678,2574.1,2574.0,0.41051235]
[1724937189651,5.12158,2574.1,2574.0,0.41051235]
[1724937189964,9.00890941,2574.1,2574.0,0.41051235]
[1724937190165,9.00890941,2574.1,2574.0,0.79891235]
[1724937190464,9.39728941,2574.1,2573.9,3.36]
[1724937190657,9.39728941,2574.1,2574.0,0.41047968]
[1724937190859,9.00890941,2574.1,2574.0,0.41047968]
[1724937191166,9.39728941,2574.1,2574.0,0.41047968]
[1724937191760,9.00890941,2574.1,2574.0,0.41047968]
[1724937191953,9.39728941,2574.1,2574.0,0.41047968]
[1724937192552,9.39728941,2574.1,2574.0,0.79887968]
[1724937192553,9.00890941,2574.1,2574.0,0.79887968]
[1724937192857,9.39728941,2574.1,2574.0,0.41047968]
[1724937193062,10.36825941,2574.1,2574.0,0.41047968]
[1724937193259,0.38842,2573.9,2573.7,3.74843]
[1724937193463,1.7402,2573.8,2573.7,3.74843]
[1724937194059,4.948,2573.8,2573.7,3.74843]
[1724937194257,8.8336,2573.8,2573.5,0.38846]
[1724937194459,0.38847,2573.5,2573.4,1.60943413]
[1724937194660,0.38847,2573.5,2573.4,1.22095413]
[1724937195062,3.59627,2573.5,2573.4,1.22095413]
[1724937195265,3.2078,2573.5,2573.4,1.60944413]
[1724937195460,1.30135,2573.7,2573.6,0.38846]
[1724937195761,0.9129,2573.7,2573.6,0.79913402]
[1724937196558,1.30134,2573.7,2573.6,0.41067402]
[1724937196875,1.30134,2573.7,2573.6,0.79913402]
[1724937198159,1.30134,2573.7,2573.6,0.38846]
[1724937199773,1.30135,2573.7,2573.6,0.38846]
[1724937200366,0.38847,2573.5,2573.4,1.60943413]
[1724937201069,0.38847,2573.5,2573.4,1.22095413]
[1724937201070,4.27407,2573.5,2573.4,1.22095413]
[1724937201272,4.27407,2573.5,2573.4,1.60944413]
[1724937201273,8.58682876,2573.5,2573.4,1.60944413]
[1724937201676,9.55801876,2573.5,2573.4,1.22095413]
[1724937201874,9.55801876,2573.5,2573.4,0.00583147]
[1724937206972,4.70122876,2573.5,2573.4,0.39432147]
[1724937208077,4.70122876,2573.5,2573.4,0.00583147]
[1724937208577,5.67241876,2573.5,2573.4,0.00583147]
[1724937208769,4.70122876,2573.5,2573.4,0.00583147]
[1724937208975,4.70122876,2573.5,2573.4,0.39432147]
[1724937209169,4.70122876,2573.5,2573.4,0.00583147]
[1724937209465,4.70122876,2573.5,2573.4,0.39432147]
[1724937209670,4.31275876,2573.5,2573.4,0.39432147]
[1724937209870,4.31275876,2573.5,2573.4,1.36555147]
[1724937210174,4.31275876,2573.5,2573.4,0.39432147]
[1724937210371,4.31275876,2573.5,2573.4,1.28432147]
[1724937210572,4.31275876,2573.5,2573.4,2.25555147]
[1724937210770,3.2078,2574.0,2573.9,0.38841]
[1724937211077,3.2078,2574.0,2573.9,3.74841]
[1724937211377,0.38843,2573.8,2573.5,3.36]
[1724937211671,8.36338855,2574.0,2573.5,3.36]
[1724937211672,3.56245,2573.9,2573.6,0.38845]
[1724937211890,0.38844,2573.8,2573.5,3.36]
[1724937212070,0.38844,2573.7,2573.6,0.38846]
[1724937212272,0.38844,2573.7,2573.5,3.36]
[1724937212273,0.38846,2573.6,2573.5,3.74846]
[1724937212481,3.59625,2573.7,2573.6,0.38846]
[1724937213372,3.59625,2573.7,2573.4,0.00583147]
[1724937213373,2.33085,2573.5,2573.4,0.00583147]
[1724937213775,10.68755915,2573.5,2573.4,0.00583147]
[1724937214175,9.71636915,2573.5,2573.4,0.00583147]
[1724937215285,8.35670915,2573.5,2573.4,0.00583147]
[1724937215581,8.35670915,2573.5,2573.4,0.39432147]
[1724937215582,4.47110915,2573.5,2573.4,0.39432147]
[1724937216080,5.35060915,2573.5,2573.4,0.39432147]
[1724937216380,5.73907915,2573.5,2573.4,0.00583147]
[1724937216580,9.62467915,2573.5,2573.4,0.00583147]
[1724937216781,10.59586915,2573.5,2573.4,0.00583147]
[1724937217277,5.35060915,2573.5,2573.4,0.39432147]
[1724937217496,3.2078,2573.7,2573.6,0.38846]
[1724937217673,0.8281,2573.9,2573.6,0.38846]
[1724937217876,0.38843,2573.8,2573.7,0.38844]
[1724937218178,4.59800836,2573.8,2573.7,0.38844]
[1724937218382,4.59801836,2573.8,2573.6,0.38845]
[1724937218568,0.8739,2573.7,2573.6,0.38845]
[1724937219182,0.8281,2573.9,2573.7,0.38843]
[1724937219377,0.38843,2573.8,2573.5,0.8623]
[1724937219579,0.38845,2573.7,2573.5,1.25077]
[1724937219880,3.57605,2573.7,2573.5,0.8623]
[1724937220081,3.57605,2573.7,2573.5,1.25077]
[1724937220977,0.38844,2573.8,2573.6,0.38846]
[1724937221183,0.38844,2573.8,2573.6,1.22276]
[1724937221382,4.84798019,2573.8,2573.6,1.22276]
[1724937221681,4.82778019,2573.8,2573.6,0.8343]
[1724937221981,4.84797019,2573.8,2573.6,1.22276]
[1724937222784,4.84797019,2573.8,2573.6,0.38846]
[1724937222981,4.45954019,2573.8,2573.7,0.38844]
[1724937223483,1.26232,2573.9,2573.7,0.38844]
[1724937225781,0.38843,2573.8,2573.6,0.38845]
[1724937226378,0.8786,2573.8,2573.5,1.7639]
[1724937226583,4.4683624,2573.7,2573.5,0.38846]
[1724937226787,5.3627624,2573.7,2573.5,0.38846]
[1724937226983,4.0799124,2573.7,2573.6,0.38846]
[1724937228086,1.26232,2573.9,2573.7,0.38844]
[1724937228387,4.4390888,2573.8,2573.6,0.38845]
[1724937230089,0.38844,2573.7,2573.5,0.38846]
[1724937230382,0.38844,2573.7,2573.6,0.41041497]
[1724937230589,0.38844,2573.7,2573.5,0.38846]
[1724937230984,4.0506588,2573.8,2573.4,0.00583147]
[1724937230985,4.67387932,2573.6,2573.4,0.39431147]
[1724937231288,0.38846,2573.6,2573.5,0.41041178]
[1724937231689,1.26606,2573.6,2573.5,0.41041178]
[1724937231893,10.78251745,2573.6,2573.5,0.41041178]
[1724937232095,1.35966,2573.5,2573.4,0.00583147]
[1724937232289,0.38856,2572.9,2572.8,0.0202]
[1724937232594,0.97137,2573.1,2572.8,0.0202]
[1724937232595,0.38856,2573.0,2572.8,0.81950024]
[1724937232787,0.38856,2573.0,2572.8,0.40877]
[1724937233291,3.2078,2573.1,2573.0,0.38855]
[1724937233693,3.2078,2573.1,2573.0,0.41054429]
[1724937233892,3.59633,2573.1,2572.9,0.8493]
[1724937234194,3.59633,2573.1,2572.8,0.40877]
[1724937234390,4.44643,2573.1,2572.8,0.40877]
[1724937235284,0.38855,2573.0,2572.8,0.0202]
[1724937235485,0.38856,2572.9,2572.8,0.0202]
[1724937235685,1.35998,2572.9,2572.8,0.4308258]
[1724937235886,1.35998,2572.9,2572.8,0.0202]
[1724937238089,4.56778,2572.9,2572.8,0.0202]
[1724937238297,8.64541649,2572.9,2572.8,0.0202]
[1724937239495,9.61683649,2572.9,2572.8,0.0202]
[1724937242599,22.86323649,2572.9,2572.8,0.0202]
[1724937242988,23.76813649,2572.9,2572.8,0.0202]
[1724937243188,1.36008,2572.7,2572.6,0.00583147]
[1724937243591,9.67176649,2572.7,2572.6,0.00583147]
[1724937245194,9.67176649,2572.7,2572.0,0.0202]
[1724937245195,0.38867,2572.2,2572.0,0.0202]
[1724937245407,0.38869,2572.1,2572.0,0.0202]